bitfinex/quotes_SOLUSD_20250929
["timestamp","ask_amount","ask_price","bid_price","bid_amount"]
[1759187670908,3.15110159,213.53,213.49,0.22]
[1759187671112,3.15110159,213.52,213.48,32.92]
[1759187671313,3.15110159,213.53,213.49,4.68406014]
[1759187671511,3.15110159,213.52,213.49,4.68406014]
[1759187671714,3.15110159,213.53,213.49,4.68406014]
[1759187671939,3.15110159,213.52,213.49,4.68406014]
[1759187672140,3.15110159,213.53,213.49,4.68406014]
[1759187672318,3.15110159,213.52,213.49,4.68406014]
[1759187675641,3.15110159,213.53,213.49,4.90406014]
[1759187675821,3.15110159,213.54,213.49,4.90406014]
[1759187676031,3.15110159,213.53,213.49,4.90406014]
[1759187676451,3.15110159,213.53,213.49,4.68406014]
[1759187676623,0.68,213.53,213.49,4.68406014]
[1759187676823,0.68,213.52,213.48,37.60425787]
[1759187677139,3.15110159,213.52,213.48,37.60425787]
[1759187677332,26.0,213.55,213.48,37.60425787]
[1759187677333,3.15110159,213.54,213.49,0.22]
[1759187677537,3.15110159,213.53,213.48,37.60425787]
[1759187677727,3.83110159,213.52,213.48,37.60425787]
[1759187677926,0.68,213.52,213.48,37.60425787]
[1759187678329,3.15110159,213.52,213.48,37.60425787]
[1759187678528,0.68,213.52,213.48,37.60425787]
[1759187679025,3.83110159,213.52,213.48,37.60425787]
[1759187679228,0.68,213.52,213.48,37.60425787]
[1759187679651,3.83110159,213.52,213.48,37.60425787]
[1759187679950,0.68,213.52,213.48,37.60425787]
[1759187680331,3.83110159,213.52,213.48,37.60425787]
[1759187680649,0.68,213.52,213.48,37.60425787]
[1759187680834,3.83110159,213.52,213.48,37.60425787]
[1759187681145,0.68,213.52,213.48,37.60425787]
[1759187681442,3.83110159,213.52,213.48,37.60425787]
[1759187681643,0.68,213.52,213.48,37.60425787]
[1759187681840,3.83110159,213.52,213.48,37.60425787]
[1759187682143,0.68,213.52,213.48,37.60425787]
[1759187682328,3.83110159,213.52,213.48,37.60425787]
[1759187682628,0.68,213.52,213.48,37.60425787]
[1759187682925,3.83110159,213.52,213.48,37.60425787]
[1759187683125,0.68,213.52,213.48,37.60425787]
[1759187683722,3.15110159,213.53,213.48,37.60425787]
[1759187684047,3.83110159,213.53,213.48,37.82425787]
[1759187684231,0.68,213.53,213.48,37.82425787]
[1759187684431,3.83110159,213.53,213.48,37.82425787]
[1759187684632,3.15110159,213.54,213.48,37.60425787]
[1759187684828,0.68,213.52,213.49,32.86]
[1759187685040,0.68,213.51,213.49,32.86]
[1759187685553,0.68,213.53,213.49,32.86]
[1759187685849,3.83110159,213.52,213.49,32.86]
[1759187686051,0.68,213.52,213.49,32.86]
[1759187686245,3.83110159,213.52,213.49,32.86]
[1759187686445,0.68,213.52,213.49,32.86]
[1759187686647,3.83110159,213.52,213.49,37.54405032]
[1759187686847,143.3066268,213.56,213.49,32.86]
[1759187686848,0.68,213.51,213.49,32.86]
[1759187687030,0.68,213.5,213.49,32.86]
[1759187687934,3.83110159,213.52,213.49,32.86]
[1759187688155,3.83110159,213.51,213.49,32.86]
[1759187688357,0.68,213.51,213.49,32.86]
[1759187688532,3.83110159,213.51,213.49,32.86]
[1759187689556,3.15110159,213.51,213.49,32.86]
[1759187689735,0.68,213.5,213.49,32.86]
[1759187690050,3.15110159,213.51,213.49,32.86]
[1759187690355,3.83110159,213.51,213.49,32.86]
[1759187690554,0.68,213.51,213.49,32.86]
[1759187690784,3.83110159,213.51,213.49,32.86]
[1759187690942,0.68,213.51,213.49,32.86]
[1759187691140,3.83110159,213.51,213.49,32.86]
[1759187691344,5.36366945,213.51,213.49,32.86]
[1759187691647,3.15110159,213.51,213.49,32.86]
[1759187691954,3.82110159,213.51,213.49,32.86]
[1759187694253,0.67,213.51,213.49,32.86]
[1759187694652,3.82110159,213.51,213.49,32.86]
[1759187694854,0.67,213.51,213.49,32.86]
[1759187695161,3.82110159,213.51,213.49,32.86]
[1759187695353,0.67,213.51,213.49,32.86]
[1759187695548,3.82110159,213.51,213.49,32.86]
[1759187695866,3.15110159,213.52,213.49,37.54405713]
[1759187696065,3.15110159,213.51,213.49,37.54405713]
[1759187696271,3.82110159,213.51,213.49,32.86]
[1759187696569,0.67,213.51,213.49,32.86]
[1759187696768,3.82110159,213.51,213.49,32.86]
[1759187696970,0.67,213.51,213.49,32.86]
[1759187697177,3.82110159,213.51,213.49,32.86]
[1759187697473,0.67,213.51,213.49,32.86]
[1759187697658,3.82110159,213.51,213.49,32.86]
[1759187697856,0.67,213.51,213.49,32.86]
[1759187698048,3.82110159,213.51,213.49,32.86]
[1759187698248,3.15110159,213.52,213.49,37.54402036]
[1759187698455,3.15110159,213.51,213.5,0.22]
[1759187698650,3.15110159,213.53,213.49,37.54402036]
[1759187698853,3.15110159,213.52,213.49,37.54402036]
[1759187699153,3.15110159,213.51,213.49,37.54402036]
[1759187699349,3.15110159,213.52,213.49,37.54402036]
[1759187699549,3.15110159,213.51,213.49,37.54402036]
[1759187699749,3.15110159,213.52,213.49,32.86]
[1759187699959,3.15110159,213.51,213.49,32.86]
[1759187700268,3.15110159,213.52,213.49,32.86]
[1759187700470,3.15110159,213.51,213.49,37.54400149]
[1759187700684,3.15110159,213.52,213.49,37.54400149]
[1759187700976,3.15110159,213.53,213.49,32.86]
[1759187701151,3.82110159,213.52,213.49,32.86]
[1759187701353,0.67,213.51,213.49,32.86]
[1759187701548,0.67,213.51,213.47,4.68448317]
[1759187701748,0.67,213.5,213.48,32.86]
[1759187701965,3.15110159,213.53,213.49,0.22]
[1759187702169,3.15110159,213.54,213.5,0.22]
[1759187702371,3.82110159,213.53,213.51,32.86]
[1759187702548,3.82110159,213.52,213.49,32.86]
[1759187702747,0.67,213.51,213.49,32.86]
[1759187702966,4.68302919,213.54,213.49,32.86]
[1759187702967,0.67,213.5,213.49,32.86]
[1759187704147,3.81151782,213.52,213.49,32.86]
[1759187704343,3.14151782,213.51,213.49,32.86]
[1759187704549,4.68322173,213.53,213.49,32.86]
[1759187704766,3.14154468,213.52,213.49,37.54400033]
[1759187704959,3.14154468,213.51,213.49,37.54400033]
[1759187705159,0.67,213.52,213.49,32.86]
[1759187705361,3.1418702,213.51,213.49,32.86]
[1759187705559,5.35347815,213.52,213.49,32.86]
[1759187705815,3.81179636,213.51,213.49,32.86]
[1759187705987,3.8115167,213.5,213.44,4.68497343]
[1759187706162,3.8115167,213.49,213.45,32.86]
[1759187706355,3.8115167,213.48,213.45,32.86]
[1759187706552,0.67,213.48,213.45,32.86]
[1759187707161,4.6841582,213.49,213.39,26.1]
[1759187707385,0.67,213.47,213.4,32.86]
[1759187707559,3.81139825,213.46,213.4,32.86]
[1759187707761,3.14139825,213.45,213.4,32.86]
[1759187707965,0.67,213.46,213.41,0.22]
[1759187708278,3.1409216,213.45,213.41,0.22]
[1759187708679,3.1409216,213.45,213.4,32.86]
[1759187708864,3.8109216,213.45,213.4,33.08]
[1759187709182,0.67,213.45,213.41,4.68581603]
[1759187709687,3.8109216,213.45,213.41,4.68581603]
[1759187709889,0.67,213.45,213.41,4.68581603]
[1759187710187,0.67,213.44,213.4,32.86]
[1759187711268,0.67,213.44,213.4,37.54601992]
[1759187711787,0.67,213.44,213.41,32.86]
[1759187711987,4.68491542,213.46,213.41,32.86]
[1759187712167,0.67,213.43,213.41,32.86]
[1759187712483,0.67,213.45,213.41,32.86]
[1759187712669,0.67,213.44,213.41,32.86]
[1759187712988,0.67,213.43,213.41,32.86]
[1759187714183,0.67,213.45,213.41,32.86]
[1759187714386,3.13723345,213.46,213.42,0.22]
[1759187714688,3.13723345,213.46,213.41,37.5458126]
[1759187714886,0.66,213.45,213.41,32.86]
[1759187715189,0.66,213.45,213.41,37.54579251]
[1759187715488,3.13723345,213.46,213.41,37.54579251]
[1759187715691,3.13723345,213.48,213.42,0.22]
[1759187716388,3.79723345,213.48,213.41,32.86]
[1759187716590,0.66,213.47,213.41,32.86]
[1759187717291,0.66,213.47,213.42,4.68555055]
[1759187717681,0.66,213.46,213.42,4.68555055]
[1759187719495,4.68472397,213.46,213.41,32.86]
[1759187719701,3.79723345,213.45,213.41,32.86]
[1759187719997,0.66,213.44,213.39,0.1]
[1759187720195,3.79723345,213.44,213.39,0.1]
[1759187720370,39.59559401,213.43,213.39,0.1]
[1759187720575,42.73282746,213.43,213.39,0.1]
[1759187720806,3.79723345,213.42,213.39,0.1]
[1759187721190,0.66,213.42,213.39,0.1]
[1759187721774,4.68581603,213.41,213.39,0.1]
[1759187721974,0.65,213.4,213.39,0.1]
[1759187722692,5.33603561,213.4,213.39,0.1]
[1759187723090,0.65,213.4,213.39,0.1]
[1759187724502,14.24559401,213.4,213.39,0.1]
[1759187724688,18.93162962,213.4,213.39,0.1]
[1759187725787,5.33603561,213.4,213.39,0.1]
[1759187728204,18.93162962,213.4,213.39,0.1]
[1759187728383,13.59559401,213.39,213.31,32.88]
[1759187728700,131.6,213.38,213.31,37.56799386]
[1759187728884,0.65,213.37,213.31,37.56799386]
[1759187729084,0.65,213.37,213.31,37.88799386]
[1759187730378,136.28664264,213.38,213.31,37.88799386]
[1759187730583,131.6,213.38,213.32,0.32]
[1759187730797,132.25,213.38,213.32,0.32]
[1759187731604,132.25,213.38,213.31,37.56799386]
[1759187731914,0.65,213.37,213.31,37.56799386]
[1759187732390,0.65,213.37,213.31,37.88799386]
[1759187732786,131.6,213.38,213.32,0.32]
[1759187733279,0.65,213.42,213.32,0.32]
[1759187734104,0.65,213.45,213.34,26.0]
[1759187734307,0.65,213.44,213.35,0.32]
[1759187734603,0.65,213.44,213.36,32.92]
[1759187734904,0.65,213.44,213.37,5.00669447]
[1759187735108,0.65,213.43,213.37,5.00669447]
[1759187736110,4.68520052,213.44,213.37,4.68669447]
[1759187736291,0.65,213.42,213.36,37.60687703]
[1759187737108,0.65,213.41,213.36,32.92]
[1759187737296,0.65,213.4,213.36,32.92]
[1759187738111,0.65,213.39,213.36,32.92]
[1759187738307,0.65,213.39,213.34,5.00734592]
[1759187738807,16.39962581,213.42,213.34,4.68734592]
[1759187738998,0.65,213.38,213.33,37.6075492]
[1759187739312,0.65,213.38,213.33,32.92]
[1759187739313,0.65,213.37,213.33,32.92]
[1759187740793,26.0,213.38,213.33,37.60752124]
[1759187740993,0.65,213.37,213.33,37.60752124]
[1759187742707,5.3367636,213.37,213.33,32.92]
[1759187743013,0.65,213.36,213.33,32.92]
[1759187743911,4.6867636,213.37,213.33,32.92]
[1759187744099,5.3367636,213.37,213.33,32.92]
[1759187744912,5.3367636,213.37,213.31,5.00800666]
[1759187745115,5.3367636,213.37,213.32,32.9]
[1759187746304,5.3367636,213.37,213.32,4.68777686]
[1759187746617,0.65,213.36,213.32,37.56777686]
[1759187746816,4.6867636,213.37,213.32,37.56777686]
[1759187747014,0.65,213.36,213.32,37.56777686]
[1759187747324,0.65,213.35,213.26,4.68911188]
[1759187747525,0.65,213.37,213.28,0.32]
[1759187748917,0.65,213.37,213.29,16.40958319]
[1759187749095,0.65,213.36,213.29,16.72958319]
[1759187749612,63.56651346,213.38,213.29,16.72958319]
[1759187749810,0.65,213.36,213.29,16.72958319]
[1759187750320,0.65,213.35,213.29,16.72958319]
[1759187754223,0.66,213.37,213.3,0.32]
[1759187755617,0.66,213.37,213.31,4.68801275]
[1759187755821,30.68649709,213.38,213.31,4.68801275]
[1759187756000,0.66,213.36,213.31,4.68801275]
[1759187756824,14.09807561,213.4,213.32,33.22]
[1759187757124,0.66,213.44,213.35,26.0]
[1759187757309,0.66,213.43,213.36,0.32]
[1759187757515,0.66,213.43,213.37,32.98]
[1759187758213,0.66,213.43,213.38,37.66647483]
[1759187758622,14.25559401,213.45,213.38,37.98647483]
[1759187758931,0.66,213.44,213.38,37.98647483]
[1759187759117,3.13220037,213.46,213.38,49.38266191]
[1759187759319,0.66,213.47,213.39,0.32]
[1759187759622,3.79220037,213.47,213.41,1.85806796]
[1759187760225,3.79220037,213.47,213.42,4.68559647]
[1759187760417,3.13220037,213.47,213.42,4.68559647]
[1759187760623,0.66,213.46,213.37,11.71623215]
[1759187760807,0.66,213.45,213.37,1.85806796]
[1759187761008,0.66,213.44,213.38,32.98]
[1759187761233,0.66,213.43,213.38,32.98]
[1759187761414,0.66,213.42,213.34,12.03789332]
[1759187761619,0.66,213.42,213.35,33.0]
[1759187761620,0.66,213.41,213.35,33.0]
[1759187761821,0.66,213.4,213.35,33.0]
[1759187762223,5.34625521,213.39,213.33,37.68754407]
[1759187762433,0.66,213.38,213.33,37.68754407]
[1759187762733,0.66,213.37,213.33,37.68754407]
[1759187763130,0.66,213.36,213.32,4.68775202]
[1759187763430,0.66,213.36,213.32,37.68775202]
[1759187764027,0.66,213.39,213.33,0.32]
[1759187764224,33.81823151,213.41,213.34,4.68735352]
[1759187764225,3.13220037,213.4,213.34,4.68735352]
[1759187765529,3.79220037,213.4,213.34,6.54542148]
[1759187770135,3.79220037,213.4,213.36,1.85806796]
[1759187770324,0.66,213.39,213.36,1.85806796]
[1759187771031,0.66,213.39,213.36,6.54490676]
[1759187772849,0.66,213.39,213.34,4.68735352]
[1759187773020,0.66,213.39,213.35,1.85806796]
[1759187773219,3.13220037,213.4,213.35,1.85806796]
[1759187773441,3.13220037,213.41,213.36,0.32]
[1759187773741,0.66,213.4,213.35,1.85806796]
[1759187774044,0.66,213.39,213.35,1.85806796]
[1759187774714,18.28120671,213.42,213.35,1.85806796]
[1759187774908,0.67,213.4,213.36,4.68691413]
[1759187775322,0.67,213.39,213.36,4.68691413]
[1759187776915,0.67,213.41,213.36,4.68691413]
[1759187777118,0.67,213.4,213.36,4.68691413]
[1759187777639,4.68542166,213.43,213.36,4.68691413]
[1759187777839,3.80468553,213.42,213.37,1.85806796]
[1759187778039,4.68506474,213.45,213.39,1.85806796]
[1759187778040,3.13468553,213.43,213.39,1.85806796]
[1759187778242,3.13468553,213.45,213.39,1.85806796]
[1759187778445,0.67,213.44,213.39,1.85806796]
[1759187778646,0.67,213.43,213.39,1.85806796]
[1759187779843,0.67,213.43,213.39,6.54417434]
[1759187780354,0.67,213.43,213.39,7.58780484]
[1759187780751,3.13468553,213.45,213.41,2.90169846]
[1759187780927,3.13468553,213.46,213.43,2.90169846]
[1759187781253,3.80468553,213.48,213.43,3.22169846]
[1759187781453,0.71,213.47,213.43,2.90169846]
[1759187783247,0.71,213.47,213.43,7.58703067]
[1759187783829,0.71,213.46,213.37,0.32]
[1759187784029,0.71,213.46,213.4,2.90169846]
[1759187784228,0.71,213.45,213.4,2.90169846]
[1759187784524,0.71,213.44,213.38,32.94]
[1759187784835,0.71,213.43,213.38,35.84169846]
[1759187785034,0.71,213.42,213.38,35.84169846]
[1759187785221,0.71,213.41,213.38,35.84169846]
[1759187785732,0.71,213.4,213.37,32.94]
[1759187785933,4.6855261,213.43,213.37,32.94]
[1759187785934,0.71,213.39,213.37,32.94]
[1759187786842,5.39594428,213.41,213.37,32.94]
[1759187787042,0.71,213.4,213.37,32.94]
[1759187792230,4.68594428,213.41,213.37,32.94]
[1759187792432,5.39594428,213.41,213.37,32.94]
[1759187793246,0.71,213.41,213.37,32.94]
[1759187793454,0.71,213.41,213.37,37.62660798]
[1759187793635,26.71,213.43,213.38,0.32]
[1759187793953,0.71,213.42,213.37,37.62660798]
[1759187794158,0.71,213.42,213.37,37.94660798]
[1759187794746,4.68518023,213.44,213.37,37.62660798]
[1759187795051,7.81986576,213.44,213.39,4.68625521]
[1759187795249,8.52986576,213.44,213.39,4.68625521]
[1759187795441,5.39518023,213.44,213.39,4.68625521]
[1759187795632,3.84468553,213.44,213.39,5.00625521]
[1759187795831,3.13468553,213.45,213.4,0.32]
[1759187796042,3.13468553,213.44,213.39,4.68625521]
[1759187796444,0.71,213.43,213.39,4.68625521]
[1759187797053,0.71,213.43,213.38,4.68647483]
[1759187797627,4.68519444,213.44,213.38,4.68647483]
[1759187797834,0.71,213.43,213.37,32.94]
[1759187798155,7.81987997,213.44,213.37,37.62665279]
[1759187798156,0.71,213.42,213.37,37.62665279]
[1759187802252,5.39562733,213.42,213.37,37.62665279]
[1759187802458,5.39562733,213.42,213.37,37.94665279]
[1759187804237,0.71,213.42,213.37,37.94665279]
[1759187805071,4.68510154,213.45,213.38,32.88]
[1759187805246,3.84430753,213.44,213.38,32.88]
[1759187805436,3.13430753,213.43,213.38,32.88]
[1759187805768,3.13430753,213.43,213.38,33.2]
[1759187805769,0.71,213.43,213.38,33.2]
[1759187805980,35.36963853,213.47,213.39,0.32]
[1759187806266,35.36963853,213.47,213.4,4.68603561]
[1759187806267,3.13430106,213.46,213.4,4.68603561]
[1759187806476,3.13430106,213.45,213.4,5.00603561]
[1759187806772,3.84430106,213.44,213.38,32.88]
[1759187806940,0.71,213.44,213.38,32.88]
[1759187807256,0.71,213.44,213.38,37.88645079]
[1759187808136,0.71,213.44,213.39,0.32]
[1759187808533,3.13500007,213.46,213.39,3.22169846]
[1759187808749,3.13541051,213.49,213.45,2.90169846]
[1759187808954,3.13541051,213.52,213.46,32.9]
[1759187809149,3.84541051,213.51,213.46,32.9]
[1759187809347,3.84541051,213.5,213.46,32.9]
[1759187809541,3.84541051,213.49,213.46,32.9]
[1759187809745,3.84541051,213.48,213.42,3.22169846]
[1759187809944,0.71,213.48,213.45,32.92]
[1759187810440,3.84541051,213.48,213.45,32.92]
[1759187813270,0.71,213.48,213.45,32.9]
[1759187813437,4.68427155,213.49,213.45,32.9]
[1759187813642,3.13541051,213.49,213.46,0.32]
[1759187813843,3.13541051,213.5,213.47,0.32]
[1759187814065,3.13541051,213.49,213.47,0.32]
[1759187814249,3.13541051,213.51,213.47,0.32]
[1759187814560,3.13541051,213.5,213.47,0.32]
[1759187814748,3.13541051,213.49,213.47,0.32]
[1759187814950,3.13541051,213.51,213.47,0.32]
[1759187815143,3.13541051,213.51,213.48,0.32]
[1759187815463,3.13541051,213.52,213.47,4.68449899]
[1759187815763,3.13541051,213.51,213.47,5.00449899]
[1759187815935,3.13541051,213.52,213.47,5.00449899]
[1759187816139,3.13541051,213.51,213.47,5.00449899]
[1759187816364,3.13541051,213.52,213.47,5.00449899]
[1759187816561,3.13541051,213.52,213.47,4.68449899]
[1759187816748,0.68,213.51,213.46,2.90169846]
[1759187816944,0.68,213.5,213.45,32.9]
[1759187817257,0.68,213.5,213.45,33.22]
[1759187817572,0.68,213.49,213.45,32.9]
[1759187817773,0.68,213.48,213.38,0.32]
[1759187817943,29.13541051,213.47,213.39,26.94]
[1759187818142,3.81541051,213.46,213.4,26.94]
[1759187818377,0.68,213.45,213.4,26.94]
[1759187818743,0.68,213.44,213.4,26.94]
[1759187818945,4.68493792,213.45,213.4,26.94]
[1759187819149,13.59559401,213.43,213.34,0.32]
[1759187819442,0.68,213.42,213.35,32.96]
[1759187819662,0.68,213.42,213.35,33.28]
[1759187820264,0.68,213.41,213.35,32.96]
[1759187821256,5.36589462,213.41,213.35,37.64699655]
[1759187821465,5.36589462,213.41,213.35,32.96]
[1759187821657,4.68589462,213.41,213.35,32.96]
[1759187821860,0.68,213.4,213.35,32.96]
[1759187822043,4.68589462,213.41,213.35,33.28]
[1759187822243,0.68,213.41,213.35,37.96705679]
[1759187822642,5.36582613,213.41,213.35,37.96705679]
[1759187823052,0.68,213.41,213.35,37.96705679]
[1759187824568,3.13041983,213.44,213.37,2.90169846]
[1759187824767,3.13041983,213.46,213.38,0.32]
[1759187824945,3.81041983,213.45,213.39,32.94]
[1759187825142,0.68,213.45,213.39,32.94]
[1759187825362,3.81041983,213.45,213.39,32.94]
[1759187825560,5.36510323,213.45,213.39,32.98]
[1759187825757,8.49552306,213.45,213.39,32.98]
[1759187825955,5.36510323,213.45,213.39,32.98]
[1759187826154,8.49552306,213.45,213.39,32.98]
[1759187826357,4.68510323,213.45,213.39,32.98]
[1759187826657,3.81041983,213.44,213.39,32.98]
[1759187826843,0.68,213.43,213.39,32.98]
[1759187827571,3.13041983,213.44,213.39,37.66619608]
[1759187827769,3.13041983,213.44,213.39,37.98619608]
[1759187827974,3.81041983,213.44,213.39,37.66619608]
[1759187828475,8.49559299,213.44,213.39,37.66619608]
[1759187828675,5.36517316,213.44,213.39,37.66619608]
[1759187828874,0.68,213.43,213.39,32.98]
[1759187829755,5.36542006,213.43,213.38,4.68647179]
[1759187829956,0.68,213.42,213.38,32.96]
[1759187830368,0.68,213.41,213.35,32.96]
[1759187831384,0.68,213.41,213.35,37.64697849]
[1759187831677,4.68563665,213.42,213.36,0.32]
[1759187832078,5.36563665,213.42,213.36,0.32]
[1759187832762,5.36563665,213.42,213.35,40.54867695]
[1759187833157,0.68,213.41,213.35,40.54867695]
[1759187833474,0.68,213.41,213.35,35.86169846]
[1759187833673,0.68,213.41,213.35,40.54875698]
[1759187834748,5.36585767,213.41,213.35,40.54875698]
[1759187834954,30.6854791,213.43,213.37,2.90169846]
[1759187835174,131.6,213.42,213.37,3.22169846]
[1759187835370,131.6,213.42,213.38,0.32]
[1759187836064,131.6,213.42,213.37,2.90169846]
[1759187836260,131.6,213.42,213.37,3.22169846]
[1759187836680,131.6,213.42,213.38,4.68647483]
[1759187836859,132.28,213.42,213.38,4.68647483]
[1759187839363,132.28,213.42,213.36,4.68691413]
[1759187839785,136.96562959,213.42,213.36,4.68691413]
[1759187840568,132.28,213.42,213.36,4.68691413]
[1759187841286,131.6,213.42,213.37,0.32]
[1759187841463,132.28,213.42,213.36,4.68691413]
[1759187842280,132.28,213.42,213.36,6.54439437]
[1759187842462,132.28,213.42,213.36,18.2616797]
[1759187842662,131.6,213.42,213.37,0.32]
[1759187842891,132.28,213.42,213.37,0.32]
[1759187843092,0.68,213.41,213.36,16.40419946]
[1759187843384,0.68,213.41,213.36,18.5816797]
[1759187843577,0.68,213.4,213.36,18.2616797]
[1759187843778,0.68,213.4,213.36,6.54439437]
[1759187845164,136.28566737,213.42,213.36,6.54439437]
[1759187845363,0.68,213.41,213.36,6.54439437]
[1759187845586,0.68,213.4,213.36,6.54439437]
[1759187845763,0.68,213.39,213.36,6.54439437]
[1759187845964,0.68,213.41,213.36,6.54439437]
[1759187846157,0.68,213.4,213.36,6.54439437]
[1759187847366,0.68,213.4,213.37,32.88]
[1759187847694,0.68,213.4,213.37,37.56658184]
[1759187848089,0.68,213.4,213.38,1.85748024]
[1759187849872,0.68,213.39,213.38,1.85748024]
[1759187850375,0.68,213.41,213.38,1.85748024]
[1759187850570,0.68,213.4,213.38,6.54390339]
[1759187850773,0.68,213.45,213.39,2.17748024]
[1759187850976,0.68,213.44,213.41,1.85748024]
[1759187851177,0.68,213.43,213.41,1.85748024]
[1759187851873,0.68,213.42,213.41,1.85748024]
[1759187856371,0.68,213.42,213.39,6.54373238]
[1759187858774,0.68,213.42,213.39,1.85748024]
[1759187860985,0.68,213.41,213.37,1.85748024]
[1759187861293,7.81394905,213.43,213.37,32.88]
[1759187861294,0.68,213.4,213.37,32.88]
[1759187861506,0.68,213.39,213.37,32.88]
[1759187862395,0.68,213.38,213.37,32.88]
[1759187863806,5.36650501,213.38,213.34,32.88]
[1759187863975,0.68,213.37,213.34,32.88]
[1759187864175,4.68650501,213.38,213.34,32.88]
[1759187864176,0.68,213.36,213.34,32.88]
[1759187865077,0.68,213.35,213.34,32.88]
[1759187865306,0.68,213.37,213.34,32.88]
[1759187865778,0.68,213.37,213.34,37.56734012]
[1759187867299,0.68,213.37,213.34,32.88]
[1759187868405,0.68,213.37,213.34,37.56735301]
[1759187871720,0.7,213.36,213.34,32.88]
[1759187872505,4.6866732,213.38,213.34,32.88]
[1759187872698,0.7,213.38,213.34,37.56734717]
[1759187872899,0.7,213.37,213.34,37.56734717]
[1759187875506,72.47559401,213.43,213.34,37.56734717]
[1759187875684,0.7,213.41,213.35,0.32]
[1759187875885,7.81907539,213.4,213.34,37.56734717]
[1759187876108,0.7,213.39,213.34,37.56734717]
[1759187876595,5.38586334,213.41,213.35,0.32]
[1759187876995,3.13298601,213.4,213.35,0.32]
[1759187877198,5.38586334,213.41,213.35,0.32]
[1759187877397,3.1329595,213.4,213.35,0.32]
[1759187877602,5.38586334,213.41,213.34,37.56734717]
[1759187877787,3.83295844,213.4,213.34,37.56734717]
[1759187877987,0.7,213.4,213.34,37.56734717]
[1759187878706,4.68603561,213.4,213.34,37.56734717]
[1759187878897,0.7,213.39,213.34,37.56734717]
[1759187879095,0.7,213.38,213.34,37.56734717]
[1759187879404,4.68603561,213.4,213.34,37.56734717]
[1759187879608,0.7,213.37,213.34,32.88]
[1759187879813,0.7,213.36,213.34,32.88]
[1759187879994,0.7,213.38,213.34,32.88]
[1759187880189,0.7,213.37,213.34,32.88]
[1759187880409,0.7,213.37,213.34,37.56734213]
[1759187881592,0.7,213.39,213.34,37.56734213]
[1759187881827,0.7,213.39,213.34,37.88734213]
[1759187883413,0.7,213.43,213.35,0.32]
[1759187883607,3.13347531,213.42,213.37,1.85748024]
[1759187883790,3.83347531,213.41,213.35,0.32]
[1759187883995,3.13347531,213.4,213.36,32.88]
[1759187884189,0.7,213.4,213.36,32.88]
[1759187885117,0.7,213.4,213.37,4.68669447]
[1759187886318,4.68584402,213.41,213.36,32.88]
[1759187886512,3.83250626,213.4,213.36,32.88]
[1759187886718,0.7,213.39,213.36,32.88]
[1759187887815,0.7,213.38,213.36,32.88]
[1759187889317,15.62915489,213.44,213.36,32.88]
[1759187889318,30.68596757,213.41,213.36,32.88]
[1759187889534,3.83137438,213.4,213.35,32.88]
[1759187889819,3.91623251,213.47,213.36,0.32]
[1759187890027,3.83186583,213.46,213.36,0.32]
[1759187890231,3.13186583,213.45,213.36,0.32]
[1759187890402,16.72745984,213.44,213.33,0.32]
[1759187890604,26.0,213.42,213.34,32.88]
[1759187890903,3.83186583,213.41,213.34,32.88]
[1759187891206,3.83140339,213.4,213.35,4.68713381]
[1759187891406,0.7,213.4,213.35,5.00713381]
[1759187895528,0.7,213.4,213.35,4.68713381]